[Event "Torneo Nuevo Centro. Jornada 10"]
[Site "Chess.com"]
[Date "2020.08.21"]
[Round "8"]
[White "Zamora Soler, Raul"]
[Black "Luque Saiz, Andrés"]
[Result "0-1"]
[WhiteElo "1856"]
[BlackElo "2049"]
[TimeControl "180+2"]
[EndTime "12:00:45 PDT"]
[Termination "Victoria de Chuch1n por tiempo"]

1. e4 {[%clk 0:03:01.9]} 1... c6 {[%clk 0:03:00.8]} 2. d4 {[%clk 0:03:02]} 2...
d5 {[%clk 0:03:02.7]} 3. e5 {[%clk 0:03:02.9]} 3... c5 {[%clk 0:03:03.7]} 4. c3
{[%clk 0:03:03.5]} 4... Nc6 {[%clk 0:03:04]} 5. Nf3 {[%clk 0:03:03]} 5... Bg4
{[%clk 0:03:04.4]} 6. Bb5 {[%clk 0:03:03.2]} 6... e6 {[%clk 0:03:04.4]} 7. Bxc6+
{[%clk 0:03:04]} 7... bxc6 {[%clk 0:03:06.3]} 8. h3 {[%clk 0:03:04.3]} 8... Bxf3
{[%clk 0:02:48.6]} 9. Qxf3 {[%clk 0:03:04.7]} 9... Qb6 {[%clk 0:02:49]} 10. dxc5
{[%clk 0:02:52.5]} 10... Bxc5 {[%clk 0:02:50.9]} 11. O-O {[%clk 0:02:52.6]}
11... Ne7 {[%clk 0:02:51.2]} 12. b4 {[%clk 0:02:49.9]} 12... Bxb4 {[%clk
0:02:42.7]} 13. cxb4 {[%clk 0:02:48]} 13... Qxb4 {[%clk 0:02:42.8]} 14. Ba3
{[%clk 0:02:42.6]} 14... Qd4 {[%clk 0:02:38.4]} 15. Qc3 {[%clk 0:02:43.2]} 15...
Nf5 {[%clk 0:02:36.4]} 16. Qxd4 {[%clk 0:02:38.8]} 16... Nxd4 {[%clk 0:02:38.3]}
17. Nc3 {[%clk 0:02:35.8]} 17... Nc2 {[%clk 0:02:37.6]} 18. Bb2 {[%clk
0:02:32.5]} 18... Nxa1 {[%clk 0:02:37.7]} 19. Bxa1 {[%clk 0:02:33.5]} 19... Rb8
{[%clk 0:02:33.5]} 20. Na4 {[%clk 0:02:33.4]} 20... Rb4 {[%clk 0:02:32.2]} 21.
Nc5 {[%clk 0:02:29]} 21... Rb5 {[%clk 0:02:17.4]} 22. Rc1 {[%clk 0:02:27.2]}
22... Ke7 {[%clk 0:02:13]} 23. a4 {[%clk 0:02:21.1]} 23... Rb4 {[%clk 0:02:13]}
24. Bc3 {[%clk 0:02:19.6]} 24... Rc4 {[%clk 0:02:12.8]} 25. Bd2 {[%clk
0:01:51.8]} 25... Rxc1+ {[%clk 0:02:12.3]} 26. Bxc1 {[%clk 0:01:52.8]} 26... f6
{[%clk 0:02:03]} 27. exf6+ {[%clk 0:01:50.8]} 27... gxf6 {[%clk 0:02:04.9]} 28.
Kf1 {[%clk 0:01:49]} 28... Rb8 {[%clk 0:02:00.9]} 29. Be3 {[%clk 0:01:47.7]}
29... e5 {[%clk 0:01:56.3]} 30. f3 {[%clk 0:01:47.4]} 30... Kd6 {[%clk
0:01:51.1]} 31. Nd3 {[%clk 0:01:35.2]} 31... Rb1+ {[%clk 0:01:49.7]} 32. Ke2
{[%clk 0:01:35.8]} 32... d4 {[%clk 0:01:50.7]} 33. Bd2 {[%clk 0:01:35.7]} 33...
c5 {[%clk 0:01:46.5]} 34. Nc1 {[%clk 0:01:25.1]} 34... c4 {[%clk 0:01:44.6]} 35.
Kd1 {[%clk 0:01:25.2]} 35... c3 {[%clk 0:01:36.9]} 36. Bh6 {[%clk 0:01:25.5]}
36... Ra1 {[%clk 0:01:30.3]} 37. Kc2 {[%clk 0:01:22.7]} 37... Rxa4 {[%clk
0:01:28.6]} 38. Kb3 {[%clk 0:01:21]} 38... Ra1 {[%clk 0:01:25.3]} 39. Kc2 {[%clk
0:01:19.3]} 39... Kd5 {[%clk 0:01:22.8]} 40. g4 {[%clk 0:01:09.4]} 40... Kc4
{[%clk 0:01:14.1]} 41. Bg7 {[%clk 0:01:00.5]} 41... Ra6 {[%clk 0:01:13.9]} 42.
h4 {[%clk 0:00:58.1]} 42... Rb6 {[%clk 0:01:10.9]} 43. Bf8 {[%clk 0:00:52.6]}
43... Rb2+ {[%clk 0:01:08.8]} 44. Kd1 {[%clk 0:00:53.1]} 44... d3 {[%clk
0:01:08.2]} 45. Ba3 {[%clk 0:00:46.3]} 45... Rb1 {[%clk 0:01:08]} 46. g5 {[%clk
0:00:45.5]} 46... fxg5 {[%clk 0:01:03.9]} 47. hxg5 {[%clk 0:00:46.3]} 47... d2
{[%clk 0:00:58.8]} 48. Kc2 {[%clk 0:00:44.7]} 48... Rxc1+ {[%clk 0:00:58.5]} 49.
Bxc1 {[%clk 0:00:45.1]} 49... dxc1=Q+ {[%clk 0:01:00.4]} 50. Kxc1 {[%clk
0:00:46]} 50... Kb3 {[%clk 0:01:00.1]} 51. Kb1 {[%clk 0:00:44.9]} 51... c2+
{[%clk 0:00:58.4]} 52. Kc1 {[%clk 0:00:45.7]} 52... a5 {[%clk 0:00:59.1]} 53. g6
{[%clk 0:00:41.8]} 53... hxg6 {[%clk 0:00:59.3]} 54. f4 {[%clk 0:00:04.4]} 54...
exf4 {[%clk 0:01:01.2]} 55. Kd2 {[%clk 0:00:04.7]} 55... a4 {[%clk 0:00:59.1]}
56. Ke2 {[%clk 0:00:05.4]} 56... a3 {[%clk 0:00:59.2]} 57. Kd2 {[%clk
0:00:05.7]} 57... a2 {[%clk 0:00:59.4]} 58. Kd3 {[%clk 0:00:06.6]} 58... c1=Q
{[%clk 0:00:55.7]} 59. Ke4 {[%clk 0:00:07.6]} 59... Qe3+ {[%clk 0:00:55.5]} 60.
Kd5 {[%clk 0:00:06.9]} 60... f3 {[%clk 0:00:56.5]} 0

[Event "Torneo Nuevo Centro. Jornada 10"]
[Site "Chess.com"]
[Date "2020.08.21"]
[Round "8"]
[White "Castellano López, Javier"]
[Black "Kovacevic, Slobodan"]
[Result "1-0"]
[WhiteElo "1934"]
[BlackElo "2290"]
[TimeControl "180+2"]
[EndTime "12:00:58 PDT"]
[Termination "Victoria de its_xavi_official por tiempo"]

1. e4 {[%clk 0:03:01.2]} 1... c5 {[%clk 0:02:58.8]} 2. Nc3 {[%clk 0:03:01.8]}
2... e6 {[%clk 0:02:58.5]} 3. g3 {[%clk 0:03:03]} 3... d6 {[%clk 0:02:56.3]} 4.
Bg2 {[%clk 0:03:03.9]} 4... Nf6 {[%clk 0:02:54.3]} 5. Nge2 {[%clk 0:03:04.5]}
5... a6 {[%clk 0:02:53.1]} 6. d3 {[%clk 0:03:03.4]} 6... Qc7 {[%clk 0:02:52.1]}
7. Be3 {[%clk 0:03:03.7]} 7... Nc6 {[%clk 0:02:51.7]} 8. h3 {[%clk 0:03:02.2]}
8... b5 {[%clk 0:02:50.8]} 9. Qd2 {[%clk 0:03:02.9]} 9... Bb7 {[%clk 0:02:50.8]}
10. O-O {[%clk 0:03:03.4]} 10... Be7 {[%clk 0:02:49.9]} 11. d4 {[%clk
0:03:03.8]} 11... cxd4 {[%clk 0:02:48.8]} 12. Nxd4 {[%clk 0:03:04.4]} 12... Ne5
{[%clk 0:02:45.8]} 13. Rae1 {[%clk 0:02:29.3]} 13... Rc8 {[%clk 0:02:42]} 14.
Re2 {[%clk 0:02:19.8]} 14... Nc4 {[%clk 0:02:36.4]} 15. Qc1 {[%clk 0:02:19.2]}
15... b4 {[%clk 0:02:33.1]} 16. Na4 {[%clk 0:02:01.5]} 16... Nxe4 {[%clk
0:02:31.2]} 17. b3 {[%clk 0:01:37.4]} 17... Ne5 {[%clk 0:02:08.2]} 18. Nxe6
{[%clk 0:01:09.4]} 18... fxe6 {[%clk 0:01:59.2]} 19. Bb6 {[%clk 0:01:09.6]}
19... Qd7 {[%clk 0:01:49.3]} 20. Bxe4 {[%clk 0:01:08.2]} 20... Bxe4 {[%clk
0:01:40.4]} 21. Rxe4 {[%clk 0:01:07.4]} 21... Nf3+ {[%clk 0:01:33.1]} 22. Kg2
{[%clk 0:01:04.5]} 22... Ng5 {[%clk 0:01:28.9]} 23. Rxb4 {[%clk 0:00:56]} 23...
e5 {[%clk 0:01:17.7]} 24. Rg4 {[%clk 0:00:34.7]} 24... Qc6+ {[%clk 0:01:16.3]}
25. f3 {[%clk 0:00:26.2]} 25... Qxc2+ {[%clk 0:01:09.8]} 26. Qxc2 {[%clk
0:00:25.4]} 26... Rxc2+ {[%clk 0:01:08.5]} 27. Rf2 {[%clk 0:00:25.4]} 27...
Rxf2+ {[%clk 0:01:05.1]} 28. Bxf2 {[%clk 0:00:24.6]} 28... Kd7 {[%clk
0:01:01.9]} 29. h4 {[%clk 0:00:25]} 29... Ne6 {[%clk 0:01:00.1]} 30. Nb6+ {[%clk
0:00:23]} 30... Kc6 {[%clk 0:00:58.3]} 31. Rc4+ {[%clk 0:00:23.1]} 31... Kb7
{[%clk 0:00:56]} 32. Nd5 {[%clk 0:00:21.8]} 32... Bd8 {[%clk 0:00:55]} 33. Rb4+
{[%clk 0:00:20.2]} 33... Kc6 {[%clk 0:00:54.1]} 34. Ne3 {[%clk 0:00:16.6]} 34...
a5 {[%clk 0:00:48.9]} 35. Rc4+ {[%clk 0:00:15]} 35... Kd7 {[%clk 0:00:41.9]} 36.
Nd5 {[%clk 0:00:14.3]} 36... Rf8 {[%clk 0:00:32.8]} 37. b4 {[%clk 0:00:13.5]}
37... axb4 {[%clk 0:00:30.9]} 38. Rxb4 {[%clk 0:00:14.2]} 38... Kc6 {[%clk
0:00:30]} 39. Ne3 {[%clk 0:00:09]} 39... d5 {[%clk 0:00:20.2]} 40. a4 {[%clk
0:00:06.7]} 40... Be7 {[%clk 0:00:15.3]} 41. Rb1 {[%clk 0:00:05.2]} 41... Nd4
{[%clk 0:00:11]} 42. Rc1+ {[%clk 0:00:04.5]} 42... Kd6 {[%clk 0:00:09.7]} 43.
Ng4 {[%clk 0:00:03.8]} 43... Nxf3 {[%clk 0:00:07.9]} 44. Bc5+ {[%clk 0:00:05.1]}
44... Ke6 {[%clk 0:00:06.9]} 45. Bxe7 {[%clk 0:00:04.1]} 45... Kxe7 {[%clk
0:00:06.4]} 46. Rf1 {[%clk 0:00:05.5]} 46... e4 {[%clk 0:00:05.5]} 47. a5 {[%clk
0:00:06]} 47... Ra8 {[%clk 0:00:05.5]} 48. Ra1 {[%clk 0:00:04.8]} 48... Ra6
{[%clk 0:00:05.4]} 49. Ne3 {[%clk 0:00:05.5]} 49... Kd6 {[%clk 0:00:05.8]} 50.
Nf5+ {[%clk 0:00:04.5]} 50... Ke5 {[%clk 0:00:05.4]} 51. Nxg7 {[%clk 0:00:05.6]}
51... d4 {[%clk 0:00:04.7]} 52. Ne8 {[%clk 0:00:04.5]} 52... d3 {[%clk
0:00:04.2]} 53. Nc7 {[%clk 0:00:05.5]} 53... Ra7 {[%clk 0:00:03.1]} 54. Nb5
{[%clk 0:00:06]} 54... Ra8 {[%clk 0:00:02.4]} 55. a6 {[%clk 0:00:06.6]} 1

[Event "Torneo Nuevo Centro. Jornada 10"]
[Site "Chess.com"]
[Date "2020.08.21"]
[Round "8"]
[White "Orts Tomás, Marc"]
[Black "Hassomal Daswani, Birjkumar"]
[Result "1-0"]
[WhiteElo "1862"]
[BlackElo "1795"]
[TimeControl "180+2"]
[EndTime "12:01:03 PDT"]
[Termination "Victoria de Rock-Bishop29 por abandono"]

1. c4 {[%clk 0:03:01.9]} 1... c6 {[%clk 0:00:35.4]} 2. Nf3 {[%clk 0:02:58.7]}
2... d6 {[%clk 0:00:34.4]} 3. g3 {[%clk 0:02:59.2]} 3... Nd7 {[%clk 0:00:35.5]}
4. Bg2 {[%clk 0:02:59.6]} 4... Qc7 {[%clk 0:00:36.9]} 5. O-O {[%clk 0:03:00.5]}
5... e5 {[%clk 0:00:38.3]} 6. d3 {[%clk 0:02:59.4]} 6... Ngf6 {[%clk 0:00:39.4]}
7. Nc3 {[%clk 0:03:00.2]} 7... Be7 {[%clk 0:00:40.2]} 8. Rb1 {[%clk 0:03:00.8]}
8... O-O {[%clk 0:00:41.7]} 9. b4 {[%clk 0:03:01.7]} 9... Rb8 {[%clk 0:00:41.8]}
10. b5 {[%clk 0:03:02.9]} 10... Re8 {[%clk 0:00:41]} 11. a4 {[%clk 0:02:57.1]}
11... Nf8 {[%clk 0:00:41.2]} 12. Ba3 {[%clk 0:02:55.9]} 12... Ng6 {[%clk
0:00:40.3]} 13. Qb3 {[%clk 0:02:43]} 13... Be6 {[%clk 0:00:40.2]} 14. Qc2 {[%clk
0:02:38.1]} 14... d5 {[%clk 0:00:40.6]} 15. Bxe7 {[%clk 0:02:36.3]} 15... Rxe7
{[%clk 0:00:41.2]} 16. bxc6 {[%clk 0:02:33]} 16... bxc6 {[%clk 0:00:41.5]} 17.
Rxb8+ {[%clk 0:02:34.9]} 17... Qxb8 {[%clk 0:00:42.3]} 18. Rb1 {[%clk
0:02:36.5]} 18... Rb7 {[%clk 0:00:42.7]} 19. Rxb7 {[%clk 0:02:28.8]} 19... Qxb7
{[%clk 0:00:43.3]} 20. cxd5 {[%clk 0:02:29.6]} 20... cxd5 {[%clk 0:00:43.8]} 21.
Nb5 {[%clk 0:02:23.8]} 21... Qc8 {[%clk 0:00:40.1]} 22. Qxc8+ {[%clk 0:02:13.3]}
22... Bxc8 {[%clk 0:00:40.4]} 23. Nxa7 {[%clk 0:02:14.8]} 23... Bd7 {[%clk
0:00:37.8]} 24. Nb5 {[%clk 0:02:11.6]} 24... h6 {[%clk 0:00:38.7]} 25. Nd2
{[%clk 0:02:10.7]} 25... Kf8 {[%clk 0:00:36.9]} 26. Nb3 {[%clk 0:02:07.5]} 26...
Ke7 {[%clk 0:00:37.6]} 27. h3 {[%clk 0:01:39.2]} 27... Nf8 {[%clk 0:00:37.8]}
28. Kf1 {[%clk 0:01:34.5]} 28... Ne6 {[%clk 0:00:38.2]} 29. Ke1 {[%clk
0:01:31.6]} 29... Kd8 {[%clk 0:00:38.9]} 30. Kd2 {[%clk 0:01:30.6]} 30... Ne8
{[%clk 0:00:39.5]} 31. Bxd5 {[%clk 0:01:29.9]} 31... N6c7 {[%clk 0:00:38]} 32.
Bc4 {[%clk 0:01:00.9]} 32... Bxh3 {[%clk 0:00:36.8]} 33. Bxf7 {[%clk 0:00:59.5]}
33... Nxb5 {[%clk 0:00:35.6]} 34. axb5 {[%clk 0:00:59.5]} 34... Nd6 {[%clk
0:00:36.4]} 35. Bc4 {[%clk 0:00:58.4]} 35... Kc7 {[%clk 0:00:37]} 36. Kc3 {[%clk
0:00:54.1]} 36... Kb6 {[%clk 0:00:37.7]} 37. Kb4 {[%clk 0:00:55.3]} 37... Bd7
{[%clk 0:00:37.8]} 38. d4 {[%clk 0:00:39.2]} 38... e4 {[%clk 0:00:36.2]} 39. Nc5
{[%clk 0:00:37.6]} 39... Bxb5 {[%clk 0:00:36.5]} 40. Bxb5 {[%clk 0:00:38.7]}
40... Nxb5 {[%clk 0:00:37.4]} 41. e3 {[%clk 0:00:39.2]} 41... Nd6 {[%clk
0:00:37.2]} 42. Ne6 {[%clk 0:00:37.8]} 42... g6 {[%clk 0:00:37]} 43. Nf8 {[%clk
0:00:30.4]} 43... g5 {[%clk 0:00:36.5]} 44. Nd7+ {[%clk 0:00:25.5]} 44... Kc6
{[%clk 0:00:37.3]} 45. Nf6 {[%clk 0:00:26.9]} 45... Kc7 {[%clk 0:00:33.6]} 46.
Kc5 {[%clk 0:00:26.3]} 46... Nf7 {[%clk 0:00:19.3]} 47. Nxe4 {[%clk 0:00:25.6]}
47... Kd7 {[%clk 0:00:20.4]} 48. d5 {[%clk 0:00:22.3]} 48... Ne5 {[%clk
0:00:21.1]} 49. Kd4 {[%clk 0:00:20.6]} 49... Ng4 {[%clk 0:00:21.3]} 50. f4
{[%clk 0:00:21.8]} 50... gxf4 {[%clk 0:00:19.5]} 51. exf4 {[%clk 0:00:23.7]}
51... h5 {[%clk 0:00:20.4]} 52. Ng5 {[%clk 0:00:16.3]} 52... Nf6 {[%clk
0:00:18.8]} 53. Ne4 {[%clk 0:00:15.8]} 53... Ng4 {[%clk 0:00:19.1]} 54. Nc5+
{[%clk 0:00:16.4]} 54... Kd6 {[%clk 0:00:19.6]} 55. Ne6 {[%clk 0:00:16.9]} 55...
Nf6 {[%clk 0:00:19.9]} 56. Ng7 {[%clk 0:00:18]} 56... h4 {[%clk 0:00:15.8]} 57.
Nf5+ {[%clk 0:00:19]} 57... Kd7 {[%clk 0:00:13.1]} 58. Nxh4 {[%clk 0:00:20.4]}
58... Kd6 {[%clk 0:00:13.2]} 59. Nf5+ {[%clk 0:00:21.5]} 1

[Event "Torneo Nuevo Centro. Jornada 10"]
[Site "Chess.com"]
[Date "2020.08.21"]
[Round "8"]
[White "Donate Peris, Jose Manuel"]
[Black "Gutierrez Marco, Dario"]
[Result "0-1"]
[WhiteElo "1537"]
[BlackElo "1829"]
[TimeControl "180+2"]
[EndTime "12:01:13 PDT"]
[Termination "Victoria de rususs por jaque mate"]

1. d4 {[%clk 0:03:01.9]} 1... Nf6 {[%clk 0:02:58.4]} 2. c4 {[%clk 0:03:02.6]}
2... c5 {[%clk 0:02:59.3]} 3. d5 {[%clk 0:03:02.4]} 3... e6 {[%clk 0:03:00.5]}
4. Nc3 {[%clk 0:03:01.5]} 4... exd5 {[%clk 0:03:01.6]} 5. cxd5 {[%clk
0:03:00.2]} 5... d6 {[%clk 0:03:03]} 6. e4 {[%clk 0:03:00.3]} 6... g6 {[%clk
0:03:04]} 7. Nf3 {[%clk 0:02:59.9]} 7... Bg7 {[%clk 0:03:05.3]} 8. Be2 {[%clk
0:02:59.5]} 8... O-O {[%clk 0:03:06.4]} 9. Qc2 {[%clk 0:02:59.1]} 9... Bg4
{[%clk 0:03:01.5]} 10. O-O {[%clk 0:02:59.1]} 10... a6 {[%clk 0:03:01.8]} 11. h3
{[%clk 0:02:59.2]} 11... Bxf3 {[%clk 0:03:02.5]} 12. Bxf3 {[%clk 0:02:58.6]}
12... b5 {[%clk 0:02:58]} 13. Bg5 {[%clk 0:02:58.2]} 13... Nbd7 {[%clk
0:02:56.3]} 14. a3 {[%clk 0:02:56.7]} 14... Qc7 {[%clk 0:02:53.4]} 15. Rac1
{[%clk 0:02:51.5]} 15... Rfe8 {[%clk 0:02:52.8]} 16. Qd2 {[%clk 0:02:39.4]}
16... Ne5 {[%clk 0:02:46.9]} 17. Be2 {[%clk 0:02:33.2]} 17... Qb6 {[%clk
0:02:44.6]} 18. Be3 {[%clk 0:02:27.9]} 18... Ned7 {[%clk 0:02:35.9]} 19. f3
{[%clk 0:02:21.1]} 19... Qd8 {[%clk 0:02:24]} 20. Bg5 {[%clk 0:02:20.2]} 20...
Qc7 {[%clk 0:02:20.9]} 21. Na2 {[%clk 0:02:13.3]} 21... Nh5 {[%clk 0:02:19.7]}
22. Nb4 {[%clk 0:02:10.3]} 22... Ng3 {[%clk 0:02:17.1]} 23. Rfd1 {[%clk
0:02:02.2]} 23... Qb6 {[%clk 0:01:29.4]} 24. Nc6 {[%clk 0:01:59.5]} 24... Ne5
{[%clk 0:01:20.4]} 25. Nxe5 {[%clk 0:01:51]} 25... Bxe5 {[%clk 0:01:22.3]} 26.
Be3 {[%clk 0:01:44.2]} 26... Qd8 {[%clk 0:01:06.4]} 27. Kf2 {[%clk 0:01:41.9]}
27... Qh4 {[%clk 0:01:05.4]} 28. Kg1 {[%clk 0:01:33.9]} 28... Nxe2+ {[%clk
0:00:55.1]} 29. Qxe2 {[%clk 0:01:32.8]} 29... Qg3 {[%clk 0:00:56.4]} 30. Kf1
{[%clk 0:01:20.7]} 30... f5 {[%clk 0:00:52.4]} 31. Qf2 {[%clk 0:00:59.7]} 31...
Qh2 {[%clk 0:00:36.1]} 32. exf5 {[%clk 0:00:56.4]} 32... Bg3 {[%clk 0:00:30]}
33. Qg1 {[%clk 0:00:51.9]} 33... Qxg1+ {[%clk 0:00:21.2]} 34. Bxg1 {[%clk
0:00:52.3]} 34... gxf5 {[%clk 0:00:21.4]} 35. Bf2 {[%clk 0:00:50.9]} 35... f4
{[%clk 0:00:20.9]} 36. Bxg3 {[%clk 0:00:42.2]} 36... fxg3 {[%clk 0:00:22.8]} 37.
Rd3 {[%clk 0:00:42.6]} 37... Re5 {[%clk 0:00:18.6]} 38. f4 {[%clk 0:00:42.7]}
38... Rf5 {[%clk 0:00:19.6]} 39. Rxg3+ {[%clk 0:00:43.3]} 39... Kf7 {[%clk
0:00:21.2]} 40. Rf3 {[%clk 0:00:41.3]} 40... Rxd5 {[%clk 0:00:21.9]} 41. g4
{[%clk 0:00:39.9]} 41... Re8 {[%clk 0:00:22]} 42. Rc2 {[%clk 0:00:36.5]} 42...
Rd1+ {[%clk 0:00:22.6]} 43. Kf2 {[%clk 0:00:35.1]} 43... c4 {[%clk 0:00:21.5]}
44. f5 {[%clk 0:00:34]} 44... d5 {[%clk 0:00:22.4]} 45. h4 {[%clk 0:00:28]}
45... d4 {[%clk 0:00:23.4]} 46. b3 {[%clk 0:00:21.4]} 46... d3 {[%clk
0:00:24.1]} 47. Rc3 {[%clk 0:00:19]} 47... Re2+ {[%clk 0:00:21.7]} 48. Kg3
{[%clk 0:00:18.7]} 48... Rg1+ {[%clk 0:00:21.6]} 49. Kf4 {[%clk 0:00:18.8]}
49... d2 {[%clk 0:00:22.9]} 50. bxc4 {[%clk 0:00:14.8]} 50... d1=Q {[%clk
0:00:23.6]} 51. cxb5 {[%clk 0:00:14.5]} 51... Qd4+ {[%clk 0:00:21.2]} 52. Kg5
{[%clk 0:00:13.9]} 52... Qf6+ {[%clk 0:00:18.1]} 53. Kf4 {[%clk 0:00:14.3]}
53... Qd6+ {[%clk 0:00:18.9]} 54. Kg5 {[%clk 0:00:13.8]} 54... Re4 {[%clk
0:00:17.8]} 55. bxa6 {[%clk 0:00:12.4]} 55... Rexg4+ {[%clk 0:00:17.1]} 56. Kh5
{[%clk 0:00:11.8]} 56... Qh2 {[%clk 0:00:07.5]} 57. Rc7+ {[%clk 0:00:11.6]}
57... Ke8 {[%clk 0:00:07.6]} 58. Re3+ {[%clk 0:00:12.1]} 58... Kd8 {[%clk
0:00:08.3]} 59. Ra7 {[%clk 0:00:09.3]} 59... Qxh4# {[%clk 0:00:08.5]} 0

[Event "Torneo Nuevo Centro. Jornada 10"]
[Site "Chess.com"]
[Date "2020.08.21"]
[Round "8"]
[White "Chofre Murcia, Adrián"]
[Black "Tormos Beltran, Maite"]
[Result "1/2-1/2"]
[WhiteElo "1612"]
[BlackElo "1442"]
[TimeControl "180+2"]
[EndTime "12:01:18 PDT"]
[Termination "Tablas por repeticiÃ³n"]

1. e4 {[%clk 0:03:01.9]} 1... d5 {[%clk 0:02:58.5]} 2. exd5 {[%clk 0:03:01.4]}
2... Qxd5 {[%clk 0:02:58]} 3. Nc3 {[%clk 0:03:02.5]} 3... Qd6 {[%clk 0:02:58.1]}
4. Nf3 {[%clk 0:03:02.3]} 4... Nf6 {[%clk 0:02:57.7]} 5. d3 {[%clk 0:03:01.3]}
5... c6 {[%clk 0:02:58.8]} 6. g3 {[%clk 0:03:00.9]} 6... e5 {[%clk 0:02:58.7]}
7. Bg2 {[%clk 0:03:01.4]} 7... Nbd7 {[%clk 0:02:59.2]} 8. O-O {[%clk 0:03:02.1]}
8... Be7 {[%clk 0:03:00.3]} 9. Re1 {[%clk 0:03:03]} 9... O-O {[%clk 0:03:01.1]}
10. Bg5 {[%clk 0:03:02.7]} 10... h6 {[%clk 0:03:01.3]} 11. Bxf6 {[%clk
0:03:02.4]} 11... Bxf6 {[%clk 0:03:02]} 12. Ne4 {[%clk 0:03:03.5]} 12... Qc7
{[%clk 0:02:51.9]} 13. Nxf6+ {[%clk 0:03:01.9]} 13... Nxf6 {[%clk 0:02:52.1]}
14. Nxe5 {[%clk 0:03:02]} 14... Re8 {[%clk 0:02:49]} 15. Nf3 {[%clk 0:03:01.4]}
15... Bg4 {[%clk 0:02:49.5]} 16. Rxe8+ {[%clk 0:03:00.5]} 16... Rxe8 {[%clk
0:02:50]} 17. Qd2 {[%clk 0:03:01.5]} 17... Nd5 {[%clk 0:02:46.4]} 18. Re1 {[%clk
0:03:00.4]} 18... Qd7 {[%clk 0:02:47.1]} 19. Rxe8+ {[%clk 0:03:00.2]} 19... Qxe8
{[%clk 0:02:48.1]} 20. c4 {[%clk 0:02:57.9]} 20... Nc7 {[%clk 0:02:47.2]} 21.
Qe3 {[%clk 0:02:58.1]} 21... Qe6 {[%clk 0:02:42.7]} 22. Qxe6 {[%clk 0:02:53.3]}
22... Nxe6 {[%clk 0:02:43.3]} 23. Ne5 {[%clk 0:02:53.9]} 23... Bf5 {[%clk
0:02:41.9]} 24. Be4 {[%clk 0:02:50.4]} 24... Bxe4 {[%clk 0:02:41.2]} 25. dxe4
{[%clk 0:02:51.1]} 25... Kf8 {[%clk 0:02:41.7]} 26. Kf1 {[%clk 0:02:50.7]} 26...
Ke7 {[%clk 0:02:42.7]} 27. Ke2 {[%clk 0:02:51.5]} 27... f6 {[%clk 0:02:43.5]}
28. Nd3 {[%clk 0:02:51.4]} 28... Kd6 {[%clk 0:02:44.4]} 29. Ke3 {[%clk 0:02:52]}
29... Ng5 {[%clk 0:02:43.1]} 30. h4 {[%clk 0:02:48.6]} 30... Ne6 {[%clk
0:02:42.7]} 31. f4 {[%clk 0:02:41.3]} 31... g5 {[%clk 0:02:37]} 32. f5 {[%clk
0:02:41.9]} 32... Nc7 {[%clk 0:02:32]} 33. hxg5 {[%clk 0:02:38.5]} 33... hxg5
{[%clk 0:02:32.6]} 34. g4 {[%clk 0:02:30.5]} 34... Na6 {[%clk 0:02:23.5]} 35. a3
{[%clk 0:02:30.9]} 35... Nb8 {[%clk 0:02:24.3]} 36. b4 {[%clk 0:02:31]} 36...
Nd7 {[%clk 0:02:25.3]} 37. Kd4 {[%clk 0:02:25.6]} 37... b5 {[%clk 0:02:06]} 38.
cxb5 {[%clk 0:01:55.9]} 38... cxb5 {[%clk 0:02:05]} 39. Nc5 {[%clk 0:01:50.3]}
39... Ne5 {[%clk 0:02:04.7]} 40. Nb7+ {[%clk 0:01:44.2]} 40... Kc6 {[%clk
0:02:01.6]} 41. Nd8+ {[%clk 0:01:42]} 41... Kd6 {[%clk 0:01:55.7]} 42. Ne6
{[%clk 0:01:41]} 42... Nxg4 {[%clk 0:01:54.8]} 43. Nf8 {[%clk 0:01:26.9]} 43...
Ke7 {[%clk 0:01:27]} 44. Ng6+ {[%clk 0:01:21.7]} 44... Kd6 {[%clk 0:01:24.4]}
45. Nf8 {[%clk 0:01:19.1]} 45... Nf2 {[%clk 0:01:18.7]} 46. Nh7 {[%clk
0:01:10.2]} 46... Ke7 {[%clk 0:01:06.3]} 47. e5 {[%clk 0:01:10.8]} 47... Ng4
{[%clk 0:00:58.8]} 48. exf6+ {[%clk 0:01:02]} 48... Nxf6 {[%clk 0:00:57.6]} 49.
Nxg5 {[%clk 0:01:02.1]} 49... Nd7 {[%clk 0:00:52.3]} 50. Ne4 {[%clk 0:00:56.1]}
50... Nb6 {[%clk 0:00:41.8]} 51. Kc5 {[%clk 0:00:49.7]} 51... Nc4 {[%clk
0:00:32.4]} 52. Kxb5 {[%clk 0:00:42.1]} 52... Nxa3+ {[%clk 0:00:32.5]} 53. Ka6
{[%clk 0:00:43.3]} 53... Nc2 {[%clk 0:00:32.1]} 54. b5 {[%clk 0:00:44.2]} 54...
Nd4 {[%clk 0:00:29.9]} 55. f6+ {[%clk 0:00:21.4]} 55... Ke6 {[%clk 0:00:28.4]}
56. Ka5 {[%clk 0:00:21.9]} 56... Kf7 {[%clk 0:00:21.2]} 57. Kb4 {[%clk
0:00:21.5]} 57... Ne6 {[%clk 0:00:16.7]} 58. Kc4 {[%clk 0:00:22.3]} 58... Nc7
{[%clk 0:00:17.3]} 59. Kc5 {[%clk 0:00:23]} 59... Ne6+ {[%clk 0:00:16.8]} 60.
Kd5 {[%clk 0:00:21.5]} 60... Nc7+ {[%clk 0:00:17.1]} 61. Kc6 {[%clk 0:00:22.4]}
61... Ne6 {[%clk 0:00:17.3]} 62. Kd6 {[%clk 0:00:13.8]} 62... Nd4 {[%clk
0:00:17.9]} 63. Kc5 {[%clk 0:00:13.8]} 63... Ne6+ {[%clk 0:00:18.7]} 64. Kc6
{[%clk 0:00:15.2]} 64... Nd4+ {[%clk 0:00:19.6]} 65. Kc5 {[%clk 0:00:14.2]}
65... Ne6+ {[%clk 0:00:20.4]} 1/2-1